fUSD/lending_fUSD_20250219
["ID","MTS","AMOUNT","RATE_DAILY","PERIOD"]
[353715023,1739995875917,-643.0,0.00012435,2]
[353715024,1739995875929,-9696.45179954,0.00012452,2]
[353715025,1739995875941,-1787.0,0.00012462,2]
[353715026,1739995875956,-1265.0,0.00012462,2]
[353715027,1739995875967,-908.0,0.00012462,2]
[353715028,1739995875977,-1424.0,0.00012462,2]
[353715029,1739995875987,-784.0,0.00012462,2]
[353715030,1739995875996,-4030.0,0.00012462,2]
[353715031,1739995876006,-539.0,0.00012462,2]
[353715032,1739995876017,-150.0,0.00012462,2]
[353715033,1739995876026,-1118.467,0.00012462,2]
[353715034,1739995876037,-3918.0,0.00012462,2]
[353715035,1739995876047,-1110.0,0.00012462,2]
[353715036,1739995876062,-501.22325641,0.00012462,2]
[353715037,1739995876073,-269.52508204,0.00012462,2]
[353715038,1739995876084,-500.0,0.00012462,2]
[353715039,1739995876096,-500.0,0.00012462,2]
[353715040,1739995876106,-500.0,0.00012462,2]
[353715041,1739995876117,-643.0,0.00012462,2]
[353715042,1739995876127,-1125.08,0.00012474,2]
[353715043,1739995876139,-403.09896643,0.00012476,2]
[353715044,1739995876149,-533.42,0.00012476,2]
[353715045,1739995876159,-500.0,0.00012476,2]
[353715046,1739995876170,-500.0,0.00012476,2]
[353715047,1739995876181,-500.0,0.00012476,2]
[353715048,1739995876192,-483.13821231,0.00012476,2]
[353715049,1739995876204,-505.76,0.00012476,2]
[353715050,1739995876215,-243.45585003,0.00012476,2]
[353715051,1739995876226,-500.0,0.00012476,2]
[353715052,1739995876236,-371.18,0.00012476,2]
[353715053,1739995876247,-500.0,0.00012476,2]
[353715054,1739995876258,-500.0,0.00012476,2]
[353715055,1739995876268,-587.31,0.00012476,2]
[353715056,1739995876279,-585.71,0.00012476,2]
[353715057,1739995876289,-524.38,0.00012476,2]
[353715058,1739995876300,-500.0,0.00012476,2]
[353715059,1739995876312,-500.0,0.00012476,2]
[353715060,1739995876322,-314.97662,0.00012476,2]
[353715061,1739995876333,-500.0,0.00012476,2]
[353715062,1739995876345,-522.39,0.00012476,2]
[353715063,1739995876356,-500.0,0.00012476,2]
[353715064,1739995876366,-230.212476,0.00012476,2]
[353715065,1739995876377,-362.16546427,0.00012476,2]
[353715066,1739995876387,-500.0,0.00012476,2]
[353715067,1739995876399,-714.19,0.00012476,2]
[353715068,1739995876410,-500.0,0.00012476,2]
[353715069,1739995876638,-500.0,0.00012476,2]
[353715070,1739995876648,-453.18209712,0.00012476,2]
[353715071,1739995876658,-500.0,0.00012476,2]
[353715072,1739995876669,-500.0,0.00012476,2]
[353715073,1739995876679,-500.0,0.00012476,2]
[353715074,1739995876689,-563.2,0.00012476,2]
[353715075,1739995876700,-500.0,0.00012476,2]
[353715076,1739995876710,-362.79613878,0.00012476,2]
[353715077,1739995876720,-349.02906744,0.00012476,2]
[353715078,1739995876731,-500.0,0.00012476,2]
[353715079,1739995876741,-500.0,0.00012476,2]
[353715080,1739995876750,-500.0,0.00012476,2]
[353715081,1739995876760,-1172.61,0.00012476,2]
[353715082,1739995876769,-500.0,0.00012476,2]
[353715083,1739995876778,-879.09,0.00012476,2]
[353715084,1739995876788,-737.96,0.00012476,2]
[353715085,1739995876798,-500.0,0.00012476,2]
[353715086,1739995876807,-962.32,0.00012476,2]
[353715087,1739995876817,-538.45,0.00012476,2]
[353715088,1739995876827,-509.59,0.00012476,2]
[353715089,1739995876836,-500.0,0.00012476,2]
[353715090,1739995876846,-546.67,0.00012476,2]
[353715091,1739995876856,-840.65,0.00012476,2]
[353715092,1739995876866,-500.0,0.00012476,2]
[353715093,1739995876876,-1437.42,0.00012476,2]
[353715094,1739995876885,-1356.54,0.00012476,2]
[353715095,1739995876895,-500.0,0.00012476,2]
[353715096,1739995876906,-785.45,0.00012476,2]
[353715097,1739995876916,-1209.73,0.00012476,2]
[353715098,1739995876927,-690.95,0.00012476,2]
[353715099,1739995876936,-1489.16,0.00012476,2]
[353715100,1739995876947,-807.67,0.00012476,2]
[353715101,1739995876957,-1423.58,0.00012476,2]
[353715102,1739995876967,-843.14,0.00012476,2]
[353715103,1739995876977,-677.57,0.00012476,2]
[353715104,1739995876986,-945.16,0.00012476,2]
[353715105,1739995876997,-3452.77,0.00012476,2]
[353715106,1739995877007,-752.33,0.00012476,2]
[353715107,1739995877016,-815.95,0.00012476,2]
[353715108,1739995877026,-932.21,0.00012476,2]
[353715109,1739995877036,-626.91,0.00012476,2]
[353715110,1739995877046,-662.97,0.00012476,2]
[353715111,1739995877056,-787.68,0.00012476,2]
[353715112,1739995877066,-643.58,0.00012476,2]
[353715113,1739995877076,-1571.8,0.00012476,2]
[353715114,1739995877086,-737.13,0.00012476,2]
[353715115,1739995877099,-500.0,0.00012476,2]
[353715116,1739995877109,-740.58,0.00012476,2]
[353715117,1739995877120,-584.39,0.00012476,2]
[353715118,1739995877130,-715.97,0.00012476,2]
[353715119,1739995877140,-734.84,0.00012476,2]
[353715120,1739995877150,-802.39,0.00012476,2]
[353715121,1739995877161,-697.67,0.00012476,2]
[353715122,1739995877171,-756.21,0.00012476,2]
[353715123,1739995877182,-500.0,0.00012476,2]
[353715124,1739995877191,-937.95,0.00012476,2]
[353715125,1739995877204,-716.59,0.00012476,2]
[353715126,1739995877214,-588.54,0.00012476,2]
[353715127,1739995877225,-1087.14,0.00012476,2]
[353715128,1739995877236,-615.01,0.00012476,2]
[353715129,1739995877246,-743.19,0.00012476,2]
[353715130,1739995877257,-1762.82,0.00012476,2]
[353715131,1739995877268,-1029.99,0.00012476,2]
[353715132,1739995877278,-963.52,0.00012476,2]
[353715133,1739995877288,-1039.67,0.00012476,2]
[353715134,1739995877299,-298.50752959,0.00012476,2]
[353715135,1739995877309,-1014.84,0.00012476,2]
[353715136,1739995877318,-898.51,0.00012476,2]
[353715137,1739995877329,-1434.81,0.00012476,2]
[353715138,1739995877339,-802.62,0.00012476,2]
[353715139,1739995877349,-1157.13,0.00012476,2]
[353715140,1739995877359,-1176.33,0.00012476,2]
[353715141,1739995877368,-1126.62,0.00012476,2]
[353715142,1739995877378,-588.95,0.00012476,2]
[353715143,1739995877388,-500.0,0.00012476,2]
[353715144,1739995877398,-865.56,0.00012476,2]
[353715145,1739995877408,-1010.38,0.00012476,2]
[353715146,1739995877417,-500.0,0.00012476,2]
[353715147,1739995877427,-692.91,0.00012476,2]
[353715148,1739995877438,-500.0,0.00012476,2]
[353715149,1739995877449,-704.62,0.00012476,2]
[353715150,1739995877459,-500.0,0.00012476,2]
[353715151,1739995877468,-1732.65,0.00012476,2]
[353715152,1739995877479,-920.03,0.00012476,2]
[353715153,1739995877491,-581.74,0.00012476,2]
[353715154,1739995877500,-601.71,0.00012476,2]
[353715155,1739995877511,-588.31,0.00012476,2]
[353715156,1739995877522,-597.73,0.00012476,2]
[353715157,1739995877532,-553.99,0.00012476,2]
[353715158,1739995877542,-500.0,0.00012476,2]
[353715159,1739995877553,-535.64,0.00012476,2]
[353715160,1739995877562,-504.05,0.00012476,2]
[353715161,1739995877572,-500.95724881,0.0001249,2]
[353715162,1739995877583,-651.00095005,0.0001249,2]
[353715163,1739995877592,-500.0,0.0001249,2]
[353715164,1739995877601,-643.0,0.0001249,2]
[353715165,1739995877611,-593.74,0.00012495,2]
[353715166,1739995877621,-542.9,0.00012495,2]
[353715167,1739995877630,-571.96,0.00012495,2]
[353715168,1739995877640,-2238.61,0.00012495,2]
[353715169,1739995877649,-565.65,0.00012495,2]
[353715170,1739995877659,-677.86,0.00012495,2]
[353715171,1739995877668,-500.0,0.00012495,2]
[353715172,1739995877678,-705.04,0.00012495,2]
[353715173,1739995877688,-500.0,0.00012495,2]
[353715174,1739995877698,-636.09,0.00012495,2]
[353715175,1739995877707,-771.98,0.00012495,2]
[353715176,1739995877716,-723.14,0.00012495,2]
[353715177,1739995877726,-662.74,0.00012495,2]
[353715178,1739995877736,-1719.04,0.00012495,2]
[353715179,1739995877746,-500.0,0.00012495,2]
[353715180,1739995877755,-1000.0,0.00012497,2]
[353715181,1739995877765,-139402.32975173,0.000125,2]
[353715182,1739995877774,-151.0,0.000125,2]
[353715183,1739995877783,-713.475265,0.000125,2]
[353715184,1739995877793,-713.475273,0.000125,2]
[353715185,1739995877803,-5004.98375569,0.00012506,2]
[353715186,1739995877813,-2500.0,0.00012513,2]
[353715187,1739995877823,-2500.0,0.00012513,2]
[353715188,1739995877832,-643.0,0.00012517,2]
[353715189,1739995877842,-153.0,0.00012526,2]
[353715190,1739995877851,-153.0,0.00012526,2]
[353715191,1739995877860,-153.0,0.00012526,2]
[353715192,1739995877870,-153.0,0.00012526,2]
[353715193,1739995877880,-153.0,0.00012526,2]
[353715194,1739995877889,-153.0,0.00012527,2]
[353715195,1739995877899,-153.0,0.00012527,2]
[353715196,1739995877909,-153.0,0.00012527,2]
[353715197,1739995877918,-153.0,0.00012527,2]
[353715198,1739995877928,-153.0,0.00012527,2]
[353715199,1739995877938,-153.0,0.00012527,2]
[353715200,1739995877949,-153.0,0.00012527,2]
[353715201,1739995877959,-153.0,0.00012527,2]
[353715202,1739995877969,-153.0,0.00012527,2]
[353715203,1739995877978,-153.0,0.00012527,2]
[353715204,1739995877988,-153.0,0.00012527,2]
[353715205,1739995877997,-153.0,0.00012527,2]
[353715206,1739995878006,-153.0,0.00012527,2]
[353715207,1739995878015,-153.0,0.0001253,2]
[353715208,1739995878025,-153.0,0.0001253,2]
[353715209,1739995878034,-153.0,0.0001253,2]
[353715210,1739995878044,-153.0,0.0001253,2]
[353715211,1739995878054,-153.0,0.0001253,2]
[353715212,1739995878064,-153.0,0.0001253,2]
[353715213,1739995878074,-153.0,0.0001253,2]
[353715214,1739995878085,-153.0,0.0001253,2]
[353715215,1739995878099,-153.0,0.0001253,2]
[353715216,1739995878111,-153.0,0.00012531,2]
[353715217,1739995878121,-153.0,0.00012531,2]
[353715218,1739995878132,-153.0,0.00012531,2]
[353715219,1739995878142,-153.0,0.00012531,2]
[353715220,1739995878152,-643.0,0.00012545,2]
[353715221,1739995878162,-177.6307218,0.00012546,2]
[353715222,1739995878172,-533.42,0.00012559,2]
[353715223,1739995878182,-500.0,0.00012559,2]
[353715224,1739995878193,-500.0,0.00012559,2]
[353715225,1739995878205,-500.0,0.00012559,2]
[353715226,1739995878215,-505.76,0.00012559,2]
[353715227,1739995878225,-500.0,0.00012559,2]
[353715228,1739995878236,-500.0,0.00012559,2]
[353715229,1739995878247,-500.0,0.00012559,2]
[353715230,1739995878258,-587.31,0.00012559,2]
[353715231,1739995878268,-585.71,0.00012559,2]
[353715232,1739995878278,-524.38,0.00012559,2]
[353715233,1739995878289,-500.0,0.00012559,2]
[353715234,1739995878299,-500.0,0.00012559,2]
[353715235,1739995878308,-314.97662,0.00012559,2]
[353715236,1739995878319,-500.0,0.00012559,2]
[353715237,1739995878328,-522.39,0.00012559,2]
[353715238,1739995878339,-500.0,0.00012559,2]
[353715239,1739995878349,-230.212476,0.00012559,2]
[353715240,1739995878359,-500.0,0.00012559,2]
[353715241,1739995878369,-714.19,0.00012559,2]
[353715242,1739995878379,-590.1498461,0.00012559,2]
[353715243,1739995878390,-500.0,0.00012559,2]
[353715244,1739995878400,-500.0,0.00012559,2]
[353715245,1739995878410,-165.039927,0.00012559,2]
[353715246,1739995878420,-500.0,0.00012559,2]
[353715247,1739995878430,-500.0,0.00012559,2]
[353715248,1739995878439,-563.2,0.00012559,2]
[353715249,1739995878450,-500.0,0.00012559,2]
[353715250,1739995878460,-500.0,0.00012559,2]
[353715251,1739995878470,-500.0,0.00012559,2]
[353715252,1739995878480,-500.0,0.00012559,2]
[353715253,1739995878490,-1172.61,0.00012559,2]
[353715254,1739995878499,-500.0,0.00012559,2]
[353715255,1739995878510,-879.09,0.00012559,2]
[353715256,1739995878520,-737.96,0.00012559,2]
[353715257,1739995878529,-500.0,0.00012559,2]
[353715258,1739995878540,-962.32,0.00012559,2]
[353715259,1739995878550,-538.45,0.00012559,2]
[353715260,1739995878560,-509.59,0.00012559,2]
[353715261,1739995878571,-500.0,0.00012559,2]
[353715262,1739995878581,-546.67,0.00012559,2]
[353715263,1739995878591,-840.65,0.00012559,2]
[353715264,1739995878600,-500.0,0.00012559,2]
[353715265,1739995878610,-1437.42,0.00012559,2]
[353715266,1739995878623,-1356.54,0.00012559,2]
[353715267,1739995878634,-500.0,0.00012559,2]
[353715268,1739995878644,-785.45,0.00012559,2]
[353715269,1739995878653,-1209.73,0.00012559,2]
[353715270,1739995878663,-690.95,0.00012559,2]
[353715271,1739995878673,-1489.16,0.00012559,2]
[353715272,1739995878683,-807.67,0.00012559,2]
[353715273,1739995878692,-1423.58,0.00012559,2]
[353715274,1739995878703,-843.14,0.00012559,2]
[353715275,1739995878713,-677.57,0.00012559,2]
[353715276,1739995878723,-945.16,0.00012559,2]
[353715277,1739995878732,-3452.77,0.00012559,2]
[353715278,1739995878742,-752.33,0.00012559,2]
[353715279,1739995878751,-815.95,0.00012559,2]
[353715280,1739995878761,-932.21,0.00012559,2]
[353715281,1739995878770,-626.91,0.00012559,2]
[353715282,1739995878780,-662.97,0.00012559,2]
[353715283,1739995878789,-787.68,0.00012559,2]
[353715284,1739995878799,-643.58,0.00012559,2]
[353715285,1739995878808,-1571.8,0.00012559,2]
[353715286,1739995878818,-737.13,0.00012559,2]
[353715287,1739995878827,-500.0,0.00012559,2]
[353715288,1739995878837,-740.58,0.00012559,2]
[353715289,1739995878847,-584.39,0.00012559,2]
[353715290,1739995878857,-715.97,0.00012559,2]
[353715291,1739995878867,-734.84,0.00012559,2]
[353715292,1739995878877,-802.39,0.00012559,2]
[353715293,1739995878887,-697.67,0.00012559,2]
[353715294,1739995878896,-756.21,0.00012559,2]
[353715295,1739995878906,-500.0,0.00012559,2]
[353715296,1739995878915,-937.95,0.00012559,2]
[353715297,1739995878925,-716.59,0.00012559,2]
[353715298,1739995878935,-588.54,0.00012559,2]
[353715299,1739995878945,-1087.14,0.00012559,2]
[353715300,1739995878954,-615.01,0.00012559,2]
[353715301,1739995878964,-743.19,0.00012559,2]
[353715302,1739995878974,-1762.82,0.00012559,2]
[353715303,1739995878984,-1029.99,0.00012559,2]
[353715304,1739995878994,-963.52,0.00012559,2]
[353715305,1739995879003,-1039.67,0.00012559,2]
[353715306,1739995879063,-1014.84,0.00012559,2]
[353715307,1739995879073,-898.51,0.00012559,2]
[353715308,1739995879083,-1434.81,0.00012559,2]
[353715309,1739995879095,-802.62,0.00012559,2]
[353715310,1739995879105,-1157.13,0.00012559,2]
[353715311,1739995879113,-1176.33,0.00012559,2]
[353715312,1739995879122,-1126.62,0.00012559,2]
[353715313,1739995879131,-588.95,0.00012559,2]
[353715314,1739995879140,-500.0,0.00012559,2]
[353715315,1739995879150,-865.56,0.00012559,2]
[353715316,1739995879159,-1010.38,0.00012559,2]
[353715317,1739995879168,-500.0,0.00012559,2]
[353715318,1739995879178,-692.91,0.00012559,2]
[353715319,1739995879187,-500.0,0.00012559,2]
[353715320,1739995879197,-704.62,0.00012559,2]
[353715321,1739995879207,-500.0,0.00012559,2]
[353715322,1739995879216,-1732.65,0.00012559,2]
[353715323,1739995879225,-920.03,0.00012559,2]
[353715324,1739995879235,-601.71,0.00012559,2]
[353715325,1739995879244,-581.74,0.00012559,2]
[353715326,1739995879254,-588.31,0.00012559,2]
[353715327,1739995879263,-597.73,0.00012559,2]
[353715328,1739995879272,-553.99,0.00012559,2]
[353715329,1739995879282,-535.64,0.00012559,2]
[353715330,1739995879291,-500.0,0.00012559,2]
[353715331,1739995879300,-204.0,0.0001257,2]
[353715332,1739995879309,-215.0,0.0001257,2]
[353715333,1739995879319,-643.0,0.00012572,2]
[353715334,1739995879329,-593.74,0.00012578,2]
[353715335,1739995879338,-542.9,0.00012578,2]
[353715336,1739995879347,-571.96,0.00012578,2]
[353715337,1739995879356,-2238.61,0.00012578,2]
[353715338,1739995879365,-565.65,0.00012578,2]
[353715339,1739995879375,-677.86,0.00012578,2]
[353715340,1739995879384,-500.0,0.00012578,2]
[353715341,1739995879393,-705.04,0.00012578,2]
[353715342,1739995879403,-500.0,0.00012578,2]
[353715343,1739995879412,-636.09,0.00012578,2]
[353715344,1739995879421,-771.98,0.00012578,2]
[353715345,1739995879430,-723.14,0.00012578,2]
[353715346,1739995879439,-662.74,0.00012578,2]
[353715347,1739995879449,-1719.04,0.00012578,2]
[353715348,1739995879459,-500.0,0.00012578,2]
[353715349,1739995879468,-8051.1603563,0.00012591,2]
[353715350,1739995879478,-3491.2082556,0.00012591,2]
[353715351,1739995879487,-643.0,0.00012599,2]
[353715352,1739995879497,-10683.32,0.00012603,2]
[353715353,1739995879506,-490.06,0.00012607,2]
[353715354,1739995879515,-1125.08,0.00012611,2]
[353715355,1739995879524,-643.0,0.00012627,2]
[353715356,1739995879533,-533.42,0.00012641,2]
[353715357,1739995879543,-371.27216677,0.00012641,2]
[353715358,1739995879552,-500.0,0.00012641,2]
[353715359,1739995879561,-500.0,0.00012641,2]
[353715360,1739995879571,-505.76,0.00012641,2]
[353715361,1739995879580,-500.0,0.00012641,2]
[353715362,1739995879589,-617.67,0.00012641,2]
[353715363,1739995879599,-500.0,0.00012641,2]
[353715364,1739995879609,-587.31,0.00012641,2]
[353715365,1739995879618,-585.71,0.00012641,2]
[353715366,1739995879627,-524.38,0.00012641,2]
[353715367,1739995879637,-500.0,0.00012641,2]
[353715368,1739995879646,-500.0,0.00012641,2]
[353715369,1739995879656,-314.97662,0.00012641,2]
[353715370,1739995879666,-500.0,0.00012641,2]
[353715371,1739995879675,-522.39,0.00012641,2]
[353715372,1739995879684,-500.0,0.00012641,2]
[353715373,1739995879693,-230.212476,0.00012641,2]
[353715374,1739995879705,-157.423366,0.00012641,2]
[353715375,1739995879714,-500.0,0.00012641,2]
[353715376,1739995879723,-714.19,0.00012641,2]
[353715377,1739995879732,-500.0,0.00012641,2]
[353715378,1739995879742,-500.0,0.00012641,2]
[353715379,1739995879751,-500.0,0.00012641,2]
[353715380,1739995879760,-500.0,0.00012641,2]
[353715381,1739995879770,-563.2,0.00012641,2]
[353715382,1739995879779,-500.0,0.00012641,2]
[353715383,1739995879789,-247.04912727,0.00012641,2]
[353715384,1739995879799,-500.0,0.00012641,2]
[353715385,1739995879808,-500.0,0.00012641,2]
[353715386,1739995879817,-1172.61,0.00012641,2]
[353715387,1739995879826,-500.0,0.00012641,2]
[353715388,1739995879835,-879.09,0.00012641,2]
[353715389,1739995879843,-737.96,0.00012641,2]
[353715390,1739995879853,-500.0,0.00012641,2]
[353715391,1739995879862,-962.32,0.00012641,2]
[353715392,1739995879871,-538.45,0.00012641,2]
[353715393,1739995879880,-509.59,0.00012641,2]
[353715394,1739995879890,-500.0,0.00012641,2]
[353715395,1739995879899,-546.67,0.00012641,2]
[353715396,1739995879908,-840.65,0.00012641,2]
[353715397,1739995879917,-500.0,0.00012641,2]
[353715398,1739995879927,-1437.42,0.00012641,2]
[353715399,1739995879937,-1356.54,0.00012641,2]
[353715400,1739995879947,-500.0,0.00012641,2]
[353715401,1739995879957,-785.45,0.00012641,2]
[353715402,1739995879966,-1209.73,0.00012641,2]
[353715403,1739995879975,-690.95,0.00012641,2]
[353715404,1739995879984,-1489.16,0.00012641,2]
[353715405,1739995879993,-807.67,0.00012641,2]
[353715406,1739995880002,-1423.58,0.00012641,2]
[353715407,1739995880011,-843.14,0.00012641,2]
[353715408,1739995880020,-677.57,0.00012641,2]
[353715409,1739995880030,-945.16,0.00012641,2]
[353715410,1739995880038,-3452.77,0.00012641,2]
[353715411,1739995880047,-752.33,0.00012641,2]
[353715412,1739995880056,-815.95,0.00012641,2]
[353715413,1739995880065,-932.21,0.00012641,2]
[353715414,1739995880074,-626.91,0.00012641,2]
[353715415,1739995880084,-662.97,0.00012641,2]
[353715416,1739995880098,-787.68,0.00012641,2]
[353715417,1739995880108,-643.58,0.00012641,2]
[353715418,1739995880117,-1571.8,0.00012641,2]
[353715419,1739995880126,-737.13,0.00012641,2]
[353715420,1739995880137,-500.0,0.00012641,2]
[353715421,1739995880146,-740.58,0.00012641,2]
[353715422,1739995880155,-584.39,0.00012641,2]
[353715423,1739995880165,-715.97,0.00012641,2]
[353715424,1739995880175,-734.84,0.00012641,2]
[353715425,1739995880185,-802.39,0.00012641,2]
[353715426,1739995880194,-697.67,0.00012641,2]
[353715427,1739995880204,-756.21,0.00012641,2]
[353715428,1739995880214,-500.0,0.00012641,2]
[353715429,1739995880223,-937.95,0.00012641,2]
[353715430,1739995880231,-716.59,0.00012641,2]
[353715431,1739995880240,-588.54,0.00012641,2]
[353715432,1739995880250,-1087.14,0.00012641,2]
[353715433,1739995880260,-615.01,0.00012641,2]
[353715434,1739995880269,-743.19,0.00012641,2]
[353715435,1739995880279,-1762.82,0.00012641,2]
[353715436,1739995880288,-1029.99,0.00012641,2]
[353715437,1739995880297,-963.52,0.00012641,2]
[353715438,1739995880306,-1039.67,0.00012641,2]
[353715439,1739995880315,-1014.84,0.00012641,2]
[353715440,1739995880325,-898.51,0.00012641,2]
[353715441,1739995880334,-1434.81,0.00012641,2]
[353715442,1739995880342,-802.62,0.00012641,2]
[353715443,1739995880351,-1157.13,0.00012641,2]
[353715444,1739995880361,-1176.33,0.00012641,2]
[353715445,1739995880370,-1126.62,0.00012641,2]
[353715446,1739995880379,-588.95,0.00012641,2]
[353715447,1739995880389,-500.0,0.00012641,2]
[353715448,1739995880398,-865.56,0.00012641,2]
[353715449,1739995880407,-1010.38,0.00012641,2]
[353715450,1739995880416,-500.0,0.00012641,2]
[353715451,1739995880425,-692.91,0.00012641,2]
[353715452,1739995880434,-456.67804674,0.00012641,2]
[353715453,1739995880443,-704.62,0.00012641,2]
[353715454,1739995880453,-500.0,0.00012641,2]
[353715455,1739995880462,-1732.65,0.00012641,2]
[353715456,1739995880471,-920.03,0.00012641,2]
[353715457,1739995880480,-601.71,0.00012641,2]
[353715458,1739995880490,-581.74,0.00012641,2]
[353715459,1739995880499,-588.31,0.00012641,2]
[353715460,1739995880508,-597.73,0.00012641,2]
[353715461,1739995880518,-553.99,0.00012641,2]
[353715462,1739995880527,-535.64,0.00012641,2]
[353715463,1739995880536,-500.0,0.00012641,2]
[353715464,1739995880545,-643.0,0.00012654,2]
[353715465,1739995880556,-593.74,0.0001266,2]
[353715466,1739995880565,-542.9,0.0001266,2]
[353715467,1739995880575,-571.96,0.0001266,2]
[353715468,1739995880584,-2238.61,0.0001266,2]
[353715469,1739995880593,-565.65,0.0001266,2]
[353715470,1739995880602,-677.86,0.0001266,2]
[353715471,1739995880611,-500.0,0.0001266,2]
[353715472,1739995880621,-500.0,0.0001266,2]
[353715473,1739995880630,-500.0,0.0001266,2]
[353715474,1739995880640,-500.0,0.0001266,2]
[353715475,1739995880649,-500.0,0.0001266,2]
[353715476,1739995880659,-949.0,0.0001266,2]
[353715477,1739995880667,-705.04,0.0001266,2]
[353715478,1739995880675,-500.0,0.0001266,2]
[353715479,1739995880683,-500.0,0.0001266,2]
[353715480,1739995880691,-743.0,0.0001266,2]
[353715481,1739995880701,-240.96,0.0001266,2]
[353715482,1739995880710,-636.09,0.0001266,2]
[353715483,1739995880717,-771.98,0.0001266,2]
[353715484,1739995880726,-723.14,0.0001266,2]
[353715485,1739995880734,-662.74,0.0001266,2]
[353715486,1739995880743,-1719.04,0.0001266,2]
[353715487,1739995880751,-500.0,0.0001266,2]
[353715488,1739995880761,-151.0,0.00012661,2]
[353715489,1739995880770,-643.0,0.00012682,2]
[353715490,1739995880778,-9696.45179954,0.00012697,2]
[353715491,1739995880787,-500.0,0.000127,2]
[353715492,1739995880796,-500.0,0.000127,2]
[353715493,1739995880806,-328.48,0.000127,2]
[353715494,1739995880815,-643.0,0.00012709,2]
[353715495,1739995880825,-2101.06237,0.0001272,2]
[353715496,1739995880835,-533.42,0.00012723,2]
[353715497,1739995880844,-245.55859016,0.00012723,2]
[353715498,1739995880854,-500.0,0.00012723,2]
[353715499,1739995880864,-505.76,0.00012723,2]
[353715500,1739995880874,-500.0,0.00012723,2]
[353715501,1739995880884,-500.0,0.00012723,2]
[353715502,1739995880893,-587.31,0.00012723,2]
[353715503,1739995880903,-585.71,0.00012723,2]
[353715504,1739995880913,-524.38,0.00012723,2]
[353715505,1739995880923,-500.0,0.00012723,2]
[353715506,1739995880932,-500.0,0.00012723,2]
[353715507,1739995880942,-314.97662,0.00012723,2]
[353715508,1739995880952,-151.0,0.00012723,2]
[353715509,1739995880963,-500.0,0.00012723,2]
[353715510,1739995880973,-522.39,0.00012723,2]
[353715511,1739995880985,-623.38664612,0.00012723,2]
[353715512,1739995880994,-230.212476,0.00012723,2]
[353715513,1739995881004,-500.0,0.00012723,2]
[353715514,1739995881013,-714.19,0.00012723,2]
[353715515,1739995881023,-548.93576211,0.00012723,2]
[353715516,1739995881032,-500.0,0.00012723,2]
[353715517,1739995881040,-500.0,0.00012723,2]
[353715518,1739995881050,-464.83740681,0.00012723,2]
[353715519,1739995881059,-563.2,0.00012723,2]
[353715520,1739995881069,-500.0,0.00012723,2]
[353715521,1739995881079,-486.45042694,0.00012723,2]
[353715522,1739995881091,-500.0,0.00012723,2]